bitfinex/quotes_BTCUSD_20250901
["timestamp","ask_amount","ask_price","bid_price","bid_amount"]
[1756713068734,8.672e-05,109100.0,109090.0,0.47731487]
[1756713068888,8.672e-05,109100.0,109090.0,0.63767487]
[1756713069500,8.672e-05,109100.0,109090.0,0.48031487]
[1756713069686,8.672e-05,109100.0,109090.0,0.63767487]
[1756713069882,8.672e-05,109100.0,109090.0,0.48031487]
[1756713070081,8.672e-05,109100.0,109090.0,0.63767487]
[1756713071888,8.672e-05,109100.0,109090.0,1.00130374]
[1756713072634,8.672e-05,109100.0,109090.0,0.63767487]
[1756713072868,8.672e-05,109100.0,109090.0,0.48031487]
[1756713073362,8.672e-05,109100.0,109090.0,0.63767487]
[1756713073802,8.672e-05,109100.0,109090.0,0.66521087]
[1756713074507,2.198e-05,109100.0,109090.0,0.66521087]
[1756713075265,2.198e-05,109100.0,109090.0,0.70689468]
[1756713075701,2.198e-05,109100.0,109090.0,1.32052355]
[1756713076106,0.00144917,109120.0,109110.0,0.73330125]
[1756713076327,0.00144917,109120.0,109110.0,1.41767013]
[1756713076546,0.00144917,109120.0,109110.0,1.05404126]
[1756713077425,0.00144917,109120.0,109110.0,1.44519913]
[1756713077653,0.00144917,109120.0,109110.0,1.28787913]
[1756713077890,0.00144917,109120.0,109110.0,1.24719913]
[1756713078147,0.00144917,109120.0,109110.0,1.25119913]
[1756713078335,0.00144917,109120.0,109110.0,1.24919913]
[1756713078679,0.00144917,109120.0,109110.0,1.25219913]
[1756713078940,0.00144917,109120.0,109110.0,0.88857026]
[1756713079165,0.00144917,109120.0,109110.0,1.25219913]
[1756713079600,0.00144917,109120.0,109110.0,1.25215913]
[1756713080227,0.00144917,109120.0,109110.0,0.88853026]
[1756713080428,0.00144917,109120.0,109110.0,1.25215913]
[1756713084098,0.00144917,109120.0,109110.0,1.26116112]
[1756713084320,0.00144917,109120.0,109110.0,1.80116112]
[1756713084976,0.00144917,109120.0,109110.0,1.50847107]
[1756713085177,0.00144917,109120.0,109110.0,1.87209994]
[1756713086194,0.00144917,109120.0,109110.0,1.50847107]
[1756713086425,0.00144917,109120.0,109110.0,1.87205994]
[1756713087475,1e-08,109130.0,109110.0,2.28567582]
[1756713087628,1e-08,109130.0,109120.0,1.62397908]
[1756713087828,1e-08,109130.0,109120.0,1.62168803]
[1756713088406,1e-08,109140.0,109130.0,0.85419349]
[1756713088596,1e-08,109140.0,109130.0,2.44136237]
[1756713088597,0.00047298,109140.0,109130.0,2.44136237]
[1756713089051,0.0723143,109170.0,109160.0,0.73321729]
[1756713089441,0.07245619,109170.0,109160.0,0.8544373]
[1756713089625,0.07245619,109170.0,109160.0,0.6966373]
[1756713089767,0.07245619,109170.0,109160.0,0.92414678]
[1756713090166,0.00034189,109170.0,109160.0,0.92414678]
[1756713091113,0.00034189,109170.0,109160.0,0.92814678]
[1756713091515,0.00034189,109170.0,109160.0,1.42914678]
[1756713091940,1e-08,109170.0,109160.0,1.89007261]
[1756713092139,0.0002,109210.0,109200.0,0.33315018]
[1756713092300,0.0002,109210.0,109200.0,1.11986409]
[1756713092500,0.00090376,109250.0,109230.0,0.18308328]
[1756713092740,0.00090376,109250.0,109240.0,0.00228853]
[1756713093098,0.00137626,109250.0,109230.0,0.18537815]
[1756713093331,0.35569017,109250.0,109240.0,0.18308311]
[1756713093543,0.35569017,109250.0,109230.0,0.22350985]
[1756713093743,0.35431391,109240.0,109230.0,0.22350985]
[1756713093944,0.34137626,109250.0,109230.0,0.22350985]
[1756713094195,0.01071241,109250.0,109240.0,0.18308311]
[1756713094398,0.00137626,109250.0,109240.0,0.18308311]
[1756713095030,0.00137626,109250.0,109240.0,0.34664311]
[1756713096174,0.00137626,109250.0,109240.0,0.43962312]
[1756713096800,0.00137626,109250.0,109240.0,0.27606312]
[1756713097150,0.00137626,109250.0,109240.0,0.47606312]
[1756713097565,0.00137626,109250.0,109240.0,0.47806312]
[1756713097980,0.00137626,109250.0,109240.0,0.62806312]
[1756713098390,0.0008064,109280.0,109270.0,0.1829329]
[1756713098608,0.0008064,109280.0,109270.0,0.44075291]
[1756713098609,0.00094814,109280.0,109270.0,0.44075291]
[1756713098810,0.00094814,109280.0,109270.0,0.64075291]
[1756713098921,0.00094814,109280.0,109270.0,0.68273072]
[1756713099122,0.00094814,109280.0,109270.0,0.71021972]
[1756713099323,0.00094814,109280.0,109270.0,0.54537972]
[1756713099555,0.00094814,109280.0,109270.0,0.68307067]
[1756713101214,0.00094814,109280.0,109270.0,0.48307067]
[1756713101520,0.00094814,109280.0,109270.0,0.48411067]
[1756713101877,0.00094814,109280.0,109270.0,0.44213286]
[1756713102288,0.00094814,109280.0,109270.0,0.86856107]
[1756713102498,0.00094814,109280.0,109270.0,0.51424716]
[1756713102704,0.00094814,109280.0,109270.0,0.31825445]
[1756713102906,0.00094814,109280.0,109270.0,0.48441445]
[1756713103388,0.00094814,109280.0,109270.0,0.32025445]
[1756713103604,0.00094814,109280.0,109270.0,0.68437445]
[1756713103961,0.00094814,109280.0,109270.0,0.68737445]
[1756713104161,0.00014174,109280.0,109270.0,0.52125445]
[1756713104659,0.53747175,109280.0,109270.0,0.09598001]
[1756713105020,0.00014174,109280.0,109270.0,0.27901286]
[1756713105220,0.53747175,109280.0,109270.0,0.09516746]
[1756713105446,0.18315784,109280.0,109270.0,0.27920031]
[1756713105622,0.00014174,109280.0,109270.0,0.27920031]
[1756713105821,0.00014174,109280.0,109270.0,0.27620031]
[1756713106036,0.53747175,109280.0,109270.0,0.25952746]
[1756713106239,0.53747175,109280.0,109270.0,0.09316746]
[1756713106602,0.53747175,109280.0,109270.0,0.27520031]
[1756713106603,0.00014174,109280.0,109270.0,0.27520031]
[1756713106748,0.00014174,109280.0,109270.0,0.47720031]
[1756713107139,0.00014174,109280.0,109270.0,0.50469031]
[1756713107339,0.00014174,109280.0,109270.0,0.57680461]
[1756713107542,0.00014174,109280.0,109270.0,0.64516461]
[1756713107969,0.00014174,109280.0,109270.0,0.57305031]
[1756713109091,0.00014174,109280.0,109270.0,1.12736422]
[1756713109332,0.00014174,109280.0,109270.0,0.84398913]
[1756713109560,0.00014174,109280.0,109270.0,1.19830304]
[1756713109992,0.00014174,109280.0,109270.0,1.20130304]
[1756713110228,0.00014174,109280.0,109270.0,0.52365746]
[1756713110465,0.00014174,109280.0,109270.0,0.87689031]
[1756713110691,0.00014174,109280.0,109270.0,0.88089031]
[1756713110945,0.00014174,109280.0,109270.0,1.57520422]
[1756713111186,0.00014174,109280.0,109270.0,1.29182913]
[1756713111404,0.00014174,109280.0,109270.0,1.01389031]
[1756713111608,0.00014174,109280.0,109270.0,0.84269031]
[1756713111818,0.00014174,109280.0,109270.0,1.01341031]
[1756713112498,0.00014174,109280.0,109270.0,1.01545031]
[1756713112703,0.00014174,109280.0,109270.0,1.01845031]
[1756713113525,0.00014174,109280.0,109270.0,1.01545031]
[1756713113934,0.00014174,109280.0,109270.0,1.01945031]
[1756713116342,0.35445565,109280.0,109270.0,0.32565746]
[1756713116558,0.53747175,109280.0,109270.0,0.49661746]
[1756713117234,0.18315784,109280.0,109270.0,0.49061746]
[1756713117449,0.18315784,109280.0,109270.0,0.32065746]
[1756713117695,0.18315784,109280.0,109270.0,0.12365746]
[1756713117911,0.53747175,109280.0,109270.0,0.09316746]
[1756713118794,0.53747175,109280.0,109270.0,0.001]
[1756713118795,1.04839175,109280.0,109270.0,0.001]
[1756713119019,0.1830496,109260.0,109240.0,0.60340311]
[1756713119221,0.53736351,109260.0,109250.0,0.33601431]
[1756713119445,0.53736351,109260.0,109250.0,0.36509431]
[1756713119666,0.53736351,109260.0,109250.0,0.09298001]
[1756713119930,0.18306636,109250.0,109240.0,0.3208]
[1756713120154,0.18306636,109250.0,109240.0,0.41378001]
[1756713120380,0.18306636,109250.0,109240.0,0.09298001]
[1756713120381,0.54662009,109250.0,109240.0,0.09298001]
[1756713120585,0.18309988,109230.0,109220.0,0.2275]
[1756713120801,0.53741379,109230.0,109220.0,0.12048001]
[1756713121011,0.87741379,109230.0,109220.0,0.12048001]
[1756713121226,0.87741379,109230.0,109190.0,0.0721143]
[1756713121227,0.18313341,109210.0,109190.0,0.42667992]
[1756713121485,0.53746409,109200.0,109190.0,0.0996193]
[1756713121689,0.53746409,109200.0,109190.0,0.16509431]
[1756713121894,0.53746409,109200.0,109190.0,0.09298001]
[1756713122076,0.53746409,109200.0,109190.0,0.09345251]
[1756713122077,0.18315018,109200.0,109190.0,0.09345251]
[1756713122291,0.18315018,109200.0,109190.0,0.0004725]
[1756713122292,0.87746409,109200.0,109190.0,0.0004725]
[1756713122507,0.87746409,109200.0,109160.0,25.027512]
[1756713122508,0.18320051,109170.0,109160.0,25.027512]
[1756713122733,0.87751442,109170.0,109160.0,25.0]
[1756713122943,0.52320051,109170.0,109160.0,25.00014178]
[1756713123576,0.18320051,109170.0,109160.0,25.09312179]
[1756713123797,0.87751442,109170.0,109160.0,25.00014178]
[1756713124022,0.34,109170.0,109160.0,25.00014178]
[1756713124245,0.18320051,109170.0,109160.0,25.29312179]
[1756713124463,0.53751442,109170.0,109160.0,25.29312179]
[1756713124672,0.35564051,109170.0,109160.0,25.29312179]
[1756713124886,0.35570423,109180.0,109160.0,25.46564179]
[1756713125093,0.18320051,109170.0,109160.0,25.17266178]
[1756713125318,0.18320051,109170.0,109160.0,25.09312179]
[1756713125527,0.53751442,109170.0,109160.0,25.09312179]
[1756713125737,0.35582378,109180.0,109160.0,25.27633539]
[1756713125946,0.52813884,109190.0,109170.0,0.09298001]
[1756713126168,0.52813884,109190.0,109170.0,0.27846824]
[1756713126169,0.34646493,109190.0,109170.0,0.27846824]
[1756713126377,0.53749764,109180.0,109170.0,0.43298001]
[1756713126587,0.53749764,109180.0,109160.0,25.00014178]
[1756713126588,0.18320051,109170.0,109160.0,25.00014178]
[1756713126799,0.35574373,109180.0,109160.0,25.29312179]
[1756713127010,0.71005764,109180.0,109170.0,0.00229]
[1756713127226,0.18320051,109170.0,109160.0,25.09312179]
[1756713127484,0.53751442,109170.0,109160.0,25.00014178]
[1756713127698,0.18298327,109190.0,109170.0,0.18319739]
[1756713127931,0.26262768,109200.0,109180.0,0.27845353]
[1756713128141,0.26262768,109200.0,109180.0,0.09298001]
[1756713128142,0.18316695,109190.0,109180.0,0.09298001]
[1756713128382,0.780505,109200.0,109180.0,0.27616374]
[1756713128614,0.53748086,109190.0,109180.0,0.09298001]
[1756713129057,0.18316695,109190.0,109180.0,0.09298001]
[1756713129299,0.42635109,109200.0,109180.0,0.27845353]
[1756713129521,0.42635109,109200.0,109180.0,0.27616374]
[1756713129756,0.54686852,109210.0,109190.0,0.18545653]
[1756713129757,0.00026453,109210.0,109190.0,0.18545653]
[1756713129986,0.00026453,109210.0,109200.0,0.09298001]
[1756713129987,0.17318453,109210.0,109200.0,0.09298001]
[1756713130190,0.00026453,109210.0,109200.0,0.27613019]
[1756713130395,0.53771185,109210.0,109200.0,0.09298001]
[1756713130600,0.53771185,109210.0,109200.0,0.27613019]
[1756713130601,0.35631794,109210.0,109200.0,0.27613019]
[1756713130805,0.35631794,109210.0,109200.0,0.09298001]
[1756713131450,0.00026453,109210.0,109200.0,0.47841956]
[1756713131661,0.00026453,109210.0,109200.0,0.47613019]
[1756713132097,0.53771185,109210.0,109200.0,0.29298001]
[1756713132300,0.53771185,109210.0,109200.0,0.47613019]
[1756713132509,0.18339794,109210.0,109200.0,0.47613019]
[1756713133554,0.00026453,109210.0,109200.0,0.47613019]
[1756713133773,0.00026453,109210.0,109200.0,0.67613019]
[1756713134000,0.00026453,109210.0,109200.0,0.99885019]
[1756713134230,0.00026453,109210.0,109200.0,1.3531641]
[1756713134451,0.00478588,109240.0,109230.0,0.38309988]
[1756713134669,0.00478588,109240.0,109230.0,0.55637988]
[1756713134879,0.00478588,109240.0,109230.0,0.55649988]
[1756713135158,0.63778077,109250.0,109240.0,0.18308311]
[1756713135371,0.28393936,109250.0,109240.0,0.18308311]
[1756713135589,0.1008725,109250.0,109240.0,0.18308311]
[1756713135799,0.28393886,109250.0,109240.0,0.18308311]
[1756713136218,0.45518641,109250.0,109240.0,0.18308311]
[1756713136466,0.1008725,109250.0,109240.0,0.27606312]
[1756713136689,0.0004725,109250.0,109240.0,0.27606312]
[1756713136899,0.18353886,109250.0,109240.0,0.09298001]
[1756713137119,0.18353886,109250.0,109240.0,0.27806312]
[1756713137339,0.53785277,109250.0,109240.0,0.45134312]
[1756713137565,0.18353886,109250.0,109240.0,0.09498001]
[1756713137779,0.53785277,109250.0,109240.0,0.09498001]
[1756713138198,0.53785277,109250.0,109240.0,0.27806312]
[1756713138405,0.53785277,109250.0,109240.0,0.09498001]
[1756713138853,0.87785277,109250.0,109240.0,0.002]
[1756713139301,0.18309365,109240.0,109220.0,0.36535208]
[1756713139533,0.71048756,109240.0,109230.0,0.00228874]
[1756713140626,0.18309988,109230.0,109220.0,0.26582001]
[1756713141258,0.1831295,109220.0,109200.0,0.61266768]
[1756713141436,0.53744341,109220.0,109210.0,0.09298001]
[1756713141729,0.53744341,109220.0,109210.0,0.15298001]
[1756713141959,0.1831295,109220.0,109210.0,0.15298001]
[1756713142183,0.53744341,109220.0,109210.0,0.15298001]
[1756713142651,0.53744341,109220.0,109210.0,0.06]
[1756713142895,0.18316511,109200.0,109180.0,0.35590373]
[1756713143130,0.5466329,109210.0,109190.0,0.27843514]
[1756713143364,0.53746409,109200.0,109190.0,0.09298001]
[1756713143843,0.18315018,109200.0,109190.0,0.09298001]
[1756713144064,0.18315018,109200.0,109190.0,0.09526959]
[1756713144275,0.53746409,109200.0,109190.0,0.09312179]
[1756713145154,0.18315018,109200.0,109190.0,0.09312179]
[1756713145590,0.18315018,109200.0,109190.0,0.27628874]
[1756713146205,0.36499899,109210.0,109190.0,0.27628874]
[1756713146423,0.36499899,109210.0,109200.0,0.18543955]
[1756713146424,0.18316232,109210.0,109200.0,0.18543955]
[1756713146668,0.71007623,109210.0,109200.0,0.09298001]
[1756713146903,0.5231295,109220.0,109200.0,0.27841956]
[1756713147108,0.5231295,109220.0,109210.0,0.09298001]
[1756713147109,0.6956895,109220.0,109210.0,0.09298001]
[1756713147547,1.05000341,109220.0,109210.0,0.09298001]
[1756713148005,0.87744341,109220.0,109210.0,0.09298001]
[1756713148266,1.04996341,109220.0,109210.0,0.09298001]
[1756713148983,1.04996341,109220.0,109210.0,0.09526917]
[1756713148984,0.6956495,109220.0,109210.0,0.09526917]
[1756713149205,1.04996341,109220.0,109210.0,0.09298001]
[1756713149641,0.6956495,109220.0,109210.0,0.09298001]
[1756713149864,0.5231295,109220.0,109210.0,0.27840258]
[1756713150076,0.3554495,109220.0,109210.0,0.27611342]
[1756713150570,0.1831295,109220.0,109210.0,0.27611342]
[1756713150787,0.1831295,109220.0,109210.0,0.09298001]
[1756713151003,0.1831295,109220.0,109210.0,0.09526917]
[1756713151215,0.53744341,109220.0,109210.0,0.26750917]
[1756713151429,0.1831295,109220.0,109210.0,0.26522001]
[1756713151653,0.53744341,109220.0,109210.0,0.26522001]
[1756713152099,0.53744341,109220.0,109210.0,0.26722001]
[1756713152529,0.1831295,109220.0,109210.0,0.26722001]
[1756713152748,0.53744341,109220.0,109210.0,0.26722001]
[1756713153169,0.19225487,109230.0,109210.0,0.45035342]
[1756713153361,1.05852878,109230.0,109220.0,0.00228895]
[1756713153495,0.70421487,109230.0,109220.0,0.00228895]
[1756713153712,0.69431391,109230.0,109220.0,0.18540559]
[1756713153919,0.70924756,109240.0,109230.0,0.18309988]
[1756713154119,0.55139859,109250.0,109230.0,0.27607989]
[1756713154362,0.18308311,109240.0,109230.0,0.44787989]
[1756713155479,0.5374596,109250.0,109240.0,0.18308311]
[1756713155705,0.0004725,109250.0,109240.0,0.18308311]
[1756713155918,0.0004725,109250.0,109240.0,0.27606312]
[1756713155919,0.53785277,109250.0,109240.0,0.27606312]
[1756713157329,0.53785277,109250.0,109240.0,0.09298001]
[1756713160561,0.18353886,109250.0,109240.0,0.09298001]
[1756713160758,0.53785277,109250.0,109240.0,0.09298001]
[1756713160977,0.18309653,109240.0,109220.0,0.2]
[1756713161190,0.18309653,109240.0,109180.0,0.38318373]
[1756713161191,0.0091575,109200.0,109180.0,0.38318373]
[1756713161406,0.53746242,109210.0,109190.0,0.27843654]
[1756713161613,0.35398851,109210.0,109190.0,0.27614696]
[1756713161860,0.18315018,109200.0,109190.0,0.26382001]
[1756713162073,0.18315018,109200.0,109190.0,0.50698696]
[1756713162287,0.18315018,109200.0,109190.0,0.32382001]
[1756713162490,0.53746409,109200.0,109190.0,0.32382001]
[1756713162699,0.53746409,109200.0,109190.0,0.32396179]
[1756713164077,0.87746409,109200.0,109190.0,0.06014178]
[1756713164293,0.87746409,109200.0,109190.0,0.00014178]
[1756713164294,1.32307682,109200.0,109190.0,0.00014178]
[1756713164518,1.32307682,109200.0,109190.0,0.00114178]
[1756713164728,1.32307682,109200.0,109190.0,0.00014178]
[1756713165190,1.41605683,109200.0,109190.0,1e-08]
[1756713165407,1.50900659,109200.0,109190.0,1e-08]
[1756713165618,1.55900659,109200.0,109190.0,1e-08]
[1756713165880,1.46605683,109200.0,109190.0,1e-08]
[1756713166095,1.46705683,109200.0,109190.0,1e-08]
[1756713166315,1.63757683,109200.0,109190.0,1e-08]
[1756713166502,1.58649683,109200.0,109190.0,1e-08]
[1756713167014,1.58749683,109200.0,109190.0,1e-08]
[1756713167458,1.58649683,109200.0,109190.0,1e-08]
[1756713167664,1.41705683,109200.0,109190.0,1e-08]
[1756713167870,1.58733683,109200.0,109190.0,1e-08]
[1756713168937,1.62868168,109200.0,109190.0,1e-08]
[1756713169351,1.62868168,109200.0,109160.0,25.0]
[1756713169352,0.89845324,109170.0,109160.0,25.0]
[1756713169576,1.23191325,109170.0,109160.0,25.0]
[1756713170571,1.23291325,109170.0,109160.0,25.0]
[1756713170773,0.96985324,109170.0,109160.0,25.0]
[1756713170995,1.13989324,109170.0,109160.0,25.0]
[1756713171400,1.1489393,109170.0,109160.0,25.0]
[1756713172181,1.28492129,109170.0,109160.0,25.0]
[1756713172381,1.32521975,109170.0,109160.0,25.0]
[1756713172787,1.32621975,109170.0,109160.0,25.0]
[1756713172961,0.64510503,109170.0,109160.0,25.0]
[1756713173162,0.18319855,109180.0,109160.0,25.4761973]
[1756713173163,0.67349445,109180.0,109160.0,25.4761973]
[1756713173402,0.67349445,109180.0,109170.0,0.00229]
[1756713173403,0.35307855,109180.0,109170.0,0.00229]
[1756713173814,0.19235397,109190.0,109170.0,0.27847052]
[1756713174016,0.86178818,109190.0,109170.0,0.27618052]
[1756713174226,0.35308285,109190.0,109180.0,0.18547352]
[1756713174576,4.722e-05,109190.0,109180.0,0.35302373]
[1756713174776,4.722e-05,109190.0,109180.0,0.64600374]
[1756713175983,0.00104722,109190.0,109180.0,0.64600374]
[1756713176211,0.18421417,109190.0,109180.0,0.47616374]
[1756713176414,4.722e-05,109190.0,109180.0,0.64604374]
[1756713176789,4.722e-05,109190.0,109180.0,0.47616374]
[1756713176993,4.722e-05,109190.0,109180.0,0.64584374]
[1756713177194,4.722e-05,109190.0,109180.0,0.64684374]
[1756713177810,4.722e-05,109190.0,109180.0,0.47716374]
[1756713178023,4.722e-05,109190.0,109180.0,0.64684374]
[1756713180212,0.18321417,109190.0,109180.0,0.47716374]
[1756713180415,0.18321417,109190.0,109180.0,0.64652374]
[1756713180620,4.722e-05,109190.0,109180.0,0.64652374]
[1756713180827,4.722e-05,109190.0,109180.0,0.99652374]
[1756713181497,4.722e-05,109190.0,109180.0,0.99552374]
[1756713181707,4.722e-05,109190.0,109180.0,0.99676374]
[1756713182209,4.722e-05,109190.0,109180.0,0.82716374]
[1756713182429,4.722e-05,109190.0,109180.0,0.99672374]
[1756713182936,4.722e-05,109190.0,109180.0,0.99572374]
[1756713183336,4.722e-05,109190.0,109180.0,1.05972374]
[1756713183723,4.722e-05,109190.0,109180.0,1.55001964]
[1756713183975,4.722e-05,109190.0,109180.0,1.89001964]
[1756713184137,4.722e-05,109190.0,109180.0,1.94000665]
[1756713184287,1e-08,109190.0,109180.0,2.01094547]
[1756713185598,1e-08,109190.0,109180.0,2.06094547]
[1756713185812,1e-08,109190.0,109180.0,2.1009679]
[1756713186014,1e-08,109190.0,109180.0,1.9284079]
[1756713186218,1e-08,109190.0,109180.0,2.0998079]
[1756713186725,1e-08,109190.0,109180.0,2.1018079]
[1756713187400,1e-08,109190.0,109180.0,2.1016879]
[1756713187913,1e-08,109190.0,109180.0,2.0976879]
[1756713188325,0.0721143,109240.0,109230.0,0.73309988]
[1756713188582,0.0722561,109240.0,109230.0,1.89581579]
[1756713189332,0.0722561,109240.0,109230.0,1.40551989]
[1756713189522,0.0722561,109240.0,109230.0,1.89581579]
[1756713189728,0.0001418,109240.0,109230.0,1.40539989]
[1756713190770,0.0001418,109240.0,109230.0,1.40939989]
[1756713191383,0.0001418,109240.0,109230.0,1.24043989]
[1756713191584,0.0001418,109240.0,109230.0,1.40931989]
[1756713192084,0.0001418,109240.0,109230.0,1.41131989]
[1756713193438,0.0001418,109240.0,109230.0,1.24243989]
[1756713193649,0.0001418,109240.0,109230.0,1.41115989]
[1756713193873,0.0001418,109240.0,109230.0,1.24243989]
[1756713194081,0.0001418,109240.0,109230.0,1.76470788]
[1756713194295,1e-08,109240.0,109230.0,1.7856467]
[1756713194525,1e-08,109240.0,109230.0,1.88563371]
[1756713194958,1e-08,109240.0,109230.0,1.88363371]
[1756713195158,0.60898187,109290.0,109280.0,0.1830161]
[1756713195388,0.25566664,109290.0,109280.0,0.3518561]
[1756713195619,0.60945463,109290.0,109280.0,0.16884]
[1756713195821,0.60945463,109290.0,109280.0,0.3541438]
[1756713196022,0.60945463,109290.0,109280.0,0.16884]
[1756713196224,0.60945463,109290.0,109280.0,0.1711277]
[1756713196641,0.00055276,109290.0,109280.0,0.44483611]
[1756713196851,0.18355211,109290.0,109280.0,0.09298001]
[1756713197059,0.5373401,109290.0,109280.0,0.44724381]
[1756713197262,0.18355211,109290.0,109280.0,0.94495611]
[1756713197464,0.35434075,109290.0,109280.0,0.94495611]
[1756713197831,0.18355211,109290.0,109280.0,0.94495611]
[1756713198040,0.5373401,109290.0,109280.0,0.91798284]
[1756713198354,0.54650096,109290.0,109280.0,0.91798284]
[1756713198555,0.19271297,109290.0,109280.0,0.91798284]
[1756713198777,0.36350161,109290.0,109280.0,0.91798284]
[1756713199133,0.36350161,109290.0,109280.0,0.41798284]
[1756713199627,0.00055276,109290.0,109280.0,0.41798284]
[1756713199823,0.35434075,109290.0,109280.0,0.41798284]
[1756713200025,0.18355211,109290.0,109280.0,0.41798284]
[1756713200174,0.5373401,109290.0,109280.0,0.41798284]
[1756713200579,0.5373401,109290.0,109280.0,0.23496674]
[1756713200827,0.5373401,109290.0,109280.0,0.41798284]
[1756713201041,0.19265148,109290.0,109280.0,0.41838284]
[1756713201202,0.54643947,109290.0,109280.0,0.41838284]
[1756713201970,0.1830161,109280.0,109270.0,0.2]
[1756713202100,0.18303285,109270.0,109260.0,0.34638909]
[1756713202301,0.53682084,109270.0,109260.0,0.51558909]
[1756713203118,0.1830161,109280.0,109270.0,0.18303285]
[1756713203503,0.20180144,109290.0,109270.0,0.27601286]
[1756713203642,0.35378799,109280.0,109270.0,0.27601286]
[1756713203843,0.20180144,109290.0,109270.0,0.44509286]
[1756713204048,0.35378799,109280.0,109270.0,0.44509286]
[1756713204550,0.00055276,109290.0,109280.0,0.1830161]
[1756713204762,0.00055276,109290.0,109280.0,0.27599611]
[1756713205209,0.35434075,109290.0,109280.0,0.27599611]
[1756713205618,0.00055276,109290.0,109280.0,0.27599611]
[1756713206033,0.35434075,109290.0,109280.0,0.27599611]
[1756713206239,0.35434075,109290.0,109280.0,0.27699611]
[1756713206657,0.35434075,109290.0,109280.0,0.47799611]
[1756713206816,0.35434075,109290.0,109280.0,0.64687611]
[1756713207279,0.35434075,109290.0,109280.0,0.47799611]
[1756713207446,0.35434075,109290.0,109280.0,0.64687611]
[1756713207645,0.5373401,109290.0,109280.0,0.17084]
[1756713207858,0.5373401,109290.0,109280.0,0.16884]
[1756713208280,0.5373401,109290.0,109280.0,0.3528561]
[1756713208499,0.5373401,109290.0,109280.0,0.16984]
[1756713208731,0.18355211,109290.0,109280.0,0.3538561]
[1756713208970,0.35434075,109290.0,109280.0,0.3538561]
[1756713209193,0.5373401,109290.0,109280.0,0.3538561]
[1756713209412,0.5373401,109290.0,109280.0,0.17084]
[1756713209624,0.5373401,109290.0,109280.0,0.3538561]
[1756713210094,0.5373401,109290.0,109280.0,0.17084]
[1756713210308,0.5373401,109290.0,109280.0,0.3538561]
[1756713210526,1.0461801,109290.0,109280.0,0.002]
[1756713211505,0.18303285,109270.0,109260.0,0.18304934]
[1756713211726,0.53682084,109270.0,109260.0,0.09298001]
[1756713211955,0.1830496,109260.0,109250.0,0.36093963]
[1756713212169,0.53683759,109260.0,109250.0,0.27604633]
[1756713212369,0.53683759,109260.0,109250.0,0.44464637]
[1756713212587,0.18306636,109250.0,109240.0,0.15]
[1756713212804,0.18308311,109240.0,109230.0,0.18309988]
[1756713213012,0.5368711,109240.0,109230.0,0.27607989]
[1756713213454,0.5368711,109240.0,109230.0,0.44471989]
[1756713213655,0.5368711,109240.0,109230.0,0.26162001]
[1756713213864,0.53695761,109240.0,109230.0,0.09298001]
[1756713214409,0.18309988,109230.0,109220.0,0.40342165]
[1756713214594,0.53688787,109230.0,109220.0,0.49640166]
[1756713214735,0.53688787,109230.0,109220.0,0.26154001]
[1756713214930,0.35378799,109230.0,109220.0,0.44465665]
[1756713215138,0.18316962,109240.0,109230.0,0.18309988]
[1756713215384,0.53695761,109240.0,109230.0,0.27607989]
[1756713215585,8.651e-05,109240.0,109230.0,0.27607989]
[1756713215829,8.651e-05,109240.0,109230.0,0.47607989]
[1756713216348,8.651e-05,109240.0,109230.0,0.54639989]
[1756713217940,8.651e-05,109240.0,109230.0,0.71587989]
[1756713218437,8.651e-05,109240.0,109230.0,0.71487989]
[1756713218661,8.651e-05,109240.0,109230.0,0.71887989]
[1756713218860,8.651e-05,109240.0,109230.0,0.71687989]
[1756713219279,8.651e-05,109240.0,109230.0,0.71987989]
[1756713219488,8.651e-05,109240.0,109230.0,0.71687989]
[1756713219985,8.651e-05,109240.0,109230.0,0.72087989]
[1756713221920,8.651e-05,109240.0,109230.0,0.55239989]
[1756713222120,8.651e-05,109240.0,109230.0,0.71651989]
[1756713222531,8.651e-05,109240.0,109230.0,0.71751989]
[1756713223005,8.651e-05,109240.0,109230.0,1.06930788]
[1756713223775,8.651e-05,109240.0,109230.0,1.07330788]
[1756713223996,8.651e-05,109240.0,109230.0,0.71943989]
[1756713224413,8.651e-05,109240.0,109230.0,1.61222788]
[1756713224825,8.651e-05,109240.0,109230.0,1.09239989]
[1756713225029,8.651e-05,109240.0,109230.0,1.26027989]
[1756713225444,8.651e-05,109240.0,109230.0,1.61406788]
[1756713225661,1e-08,109240.0,109230.0,1.56711371]
[1756713225869,1e-08,109240.0,109230.0,1.6849667]
[1756713226086,0.42598229,109290.0,109280.0,0.1830161]
[1756713226294,0.42598229,109290.0,109280.0,0.27599611]
[1756713226295,0.07266672,109290.0,109280.0,0.27599611]
[1756713226497,0.00055242,109290.0,109280.0,0.27599611]
[1756713228344,0.00055242,109290.0,109280.0,0.44375611]
[1756713228554,0.00055242,109290.0,109280.0,0.27599611]
[1756713228770,0.00055242,109290.0,109280.0,1.1373841]
[1756713229187,0.00021357,109290.0,109280.0,1.1403841]
[1756713229387,0.00021357,109290.0,109280.0,1.1383841]
[1756713229596,0.00021357,109290.0,109280.0,1.1413841]
[1756713230009,0.00021357,109290.0,109280.0,1.1383841]
[1756713230189,0.00021357,109290.0,109280.0,1.1423841]
[1756713230454,0.0021,109300.0,109290.0,1.42678734]
[1756713230663,0.00224169,109300.0,109290.0,1.59008735]
[1756713231075,0.00224169,109300.0,109290.0,1.66102617]
[1756713231709,0.00224169,109300.0,109290.0,1.59008735]
[1756713231919,0.00224169,109300.0,109290.0,1.59208735]
[1756713232122,0.00224169,109300.0,109290.0,1.23829936]
[1756713232325,0.00224169,109300.0,109290.0,1.20385936]
[1756713232504,0.00224169,109300.0,109290.0,1.55764735]
[1756713232652,0.00224169,109300.0,109290.0,1.56064735]
[1756713233090,0.00224169,109300.0,109290.0,1.56564735]
[1756713233495,0.00224169,109300.0,109290.0,1.04429936]
[1756713233692,0.00224169,109300.0,109290.0,0.87189936]
[1756713233932,0.00224169,109300.0,109290.0,0.69629936]
[1756713234142,0.00224169,109300.0,109290.0,1.71960735]
[1756713234399,0.00224169,109300.0,109290.0,1.36581936]
[1756713234596,0.00224169,109300.0,109290.0,1.19629936]
[1756713235073,0.00224169,109300.0,109290.0,1.36469936]
[1756713235192,0.00224169,109300.0,109290.0,1.36877936]
[1756713235393,0.00224169,109300.0,109290.0,1.36777936]
[1756713235596,0.00224169,109300.0,109290.0,1.36377936]
[1756713235822,0.00224169,109300.0,109290.0,1.36577936]
[1756713236026,0.00224169,109300.0,109290.0,1.36877936]
[1756713236225,0.00224169,109300.0,109290.0,1.70877936]
[1756713236723,0.00224169,109300.0,109290.0,2.05956735]
[1756713237181,0.00224169,109300.0,109290.0,2.06156735]
[1756713237424,0.20126462,109330.0,109310.0,0.18296587]
[1756713237425,0.53673713,109320.0,109310.0,0.18296587]
[1756713237665,0.53673713,109320.0,109310.0,0.44334588]
[1756713237876,0.53673713,109320.0,109310.0,0.26038001]
[1756713238078,0.35378799,109320.0,109310.0,0.44334588]
[1756713238301,0.54134174,109330.0,109320.0,0.18294914]
[1756713238522,0.18294914,109320.0,109310.0,0.44334588]
[1756713239197,0.89512973,109330.0,109310.0,0.94334588]